Cogmind - Beta 9.3 @@@ ROGUE MODE // 2019.12.29 @ 14:01:55 // Winter2019/RPGLIKE Player: BadAss McGhee Result: Destroyed by S-10 Pest with Light Assault Rifle Performance ------------- Evolutions (1) 500 Regions Visited (2) 400 Robots Destroyed (19) 95 Value Destroyed (497) 497 Prototype IDs (0) 0 Alien Tech Used (0) 0 Bonus (19) 19 TOTAL SCORE: 1511 Bonus ------- High Alert Combat Kills 19 Cogmind --------- Core Integrity 0/650 Matter 300/300 Energy 160/160 System Corruption 0% Temperature Cool (0) Movement Walking (120) Location -9/Materials Parts ------- > --- POWER (1) -------- Light Nuclear Core > --- PROPULSION (2) --- Aluminum Leg Aluminum Leg > --- UTILITY (2) ------ Improved Signal Interpreter > --- WEAPON (2) ------- Light EM Pulse Cannon Datajack > --- INVENTORY (2) ---- Small Laser Grenade Launcher Peak State ------------ > --- POWER ------------ Light Nuclear Core > --- PROPULSION ------- Aluminum Leg Aluminum Leg > --- UTILITY ---------- Improved Signal Interpreter > --- WEAPON ----------- Light EM Pulse Cannon Grenade Launcher > --- INVENTORY -------- Datajack [Rating: 10] Favorites ----------- Power Light Nuclear Core Engine Light Ion Engine Power Core Light Nuclear Core Propulsion Aluminum Leg Leg Aluminum Leg Utility Improved Signal Interpreter Processor Improved Signal Interpreter Weapon Medium Laser Energy Gun Medium Laser Energy Cannon Light EM Pulse Cannon Ballistic Gun Light Assault Rifle Launcher Grenade Launcher Special Melee Weapon Datajack Build | -11 -10 -9 ------- Run | Scr Mat Mat Slots Evolved 3 | 3 . . Power . | . . . Propulsion 1 | 1 . . Utility 1 | 1 . . Weapon 1 | 1 . . Parts Attached 13 | 5 2 6 Power 2 | 1 1 . Engine 1 | 1 . . Core 1 | . 1 . Reactor . | . . . Propulsion 5 | 2 . 3 Treads . | . . . Leg 5 | 2 . 3 Wheel . | . . . Hover . | . . . Flight . | . . . Utility 1 | . . 1 Device . | . . . Storage . | . . . Processor 1 | . . 1 Hackware . | . . . Protection . | . . . Artifact . | . . . Weapon 5 | 2 1 2 Energy Gun 1 | 1 . . Energy Cannon 1 | . . 1 Ballistic Gun 1 | 1 . . Ballistic Cannon . | . . . Launcher 1 | . 1 . Special Weapon . | . . . Impact Weapon . | . . . Slashing Weapon . | . . . Piercing Weapon . | . . . Special Melee Weapon 1 | . . 1 Unidentified Prototypes . | . . . Parts Lost 1 | . . 1 Power . | . . . Propulsion . | . . . Utility . | . . . Weapon 1 | . . 1 Highest Loss Streak 1 | . . 1 Average Slot Usage (%) 78 | . 71 83 Engine 1 | . 3 . Core 12 | . 10 14 Leg 28 | . 28 28 Processor 7 | . . 13 Energy Gun 10 | . 14 8 Energy Cannon 2 | . . 4 Launcher 11 | . 13 9 Special Melee Weapon 2 | . . 4 Naked Turns . | . . . Heaviest Build 10 | 6 10 10 Greatest Support 20 | 20 20 20 Greatest Overweight (x) 1 | 1 . . Average Overweight (x) . | . . . Largest Inventory Capacity 2 | 2 2 2 Average Capacity 1 | 1 2 2 Most Carried 2 | 1 2 2 Average Carried 1 | . 1 1 Final Capacity 2 | 2 2 2 Final Carried 2 | 1 2 2 Class Distribution -------------------- 90% | Mutant 9% | Scavenger-Mutant Dominant Class ---------------- Mutant | -10/Materials Mutant | -9/Materials Resources | -11 -10 -9 ----------- Run | Scr Mat Mat Matter Collected 455 | 250 60 145 Remotely . | . . . Salvage Created 538 | . 284 254 Parts 35 | . 12 23 Haulers Intercepted . | . . . Recyclers Shooed . | . . . Parts Field Recycled . | . . . Retrieved Matter . | . . . Parts Self-Destructed . | . . . Prevented . | . . . Kills | -11 -10 -9 ------- Run | Scr Mat Mat Combat Hostiles Destroyed 19 | . 7 12 Guns 16 | . 6 10 Cannons 1 | . . 1 AOE 2 | . 1 1 Classes Destroyed 3 | . 1 2 Swarmer 9 | . . 9 Grunt 9 | . 7 2 Sentry 1 | . . 1 Best Kill Streak 4 | . 2 4 Combat Bots Only 4 | . 2 4 Max Kills in Single Turn 1 | . 1 1 Gunslinging . | . . . Exploded 1 | . 1 1 Melee . | . . . Uniques/NPCs Destroyed . | . . . Combat | -11 -10 -9 -------- Run | Scr Mat Mat Damage Taken 975 | . 255 720 Core 794 | . 203 591 Absorbed by Shields . | . . . Redirected to Core 586 | . 168 418 Core Remaining (%) 95 | 100 90 . Volleys Fired 83 | . 39 44 Largest 1 | . 1 1 Hottest 56 | . 50 56 Shots Fired 83 | . 39 44 Gun 69 | . 35 34 Cannon 1 | . . 1 Launcher 13 | . 4 9 Special . | . . . Kinetic . | . . . Thermal 69 | . 35 34 Explosive 13 | . 4 9 Electromagnetic 1 | . . 1 Robot Hit Streak 11 | . 8 11 Robot Miss Streak 5 | . 2 5 Penetration Max . | . . . Secondary Targets . | . . . Shots Hit Robots 58 | . 31 27 Core Hits 33 | . 17 16 Critical Hits . | . . . Critical Kills . | . . . Critical Parts Destroyed . | . . . Melee Attacks . | . . . Impact . | . . . Slashing . | . . . Piercing . | . . . Sneak Attacks . | . . . Combat Hostiles . | . . . Follow-up Attacks . | . . . Damage Inflicted 955 | . 503 452 Guns 586 | . 363 223 Cannons 22 | . . 22 Explosions 347 | . 140 207 Melee . | . . . Ramming . | . . . Kinetic . | . . . Thermal 664 | . 363 301 Explosive 269 | . 140 129 Electromagnetic 22 | . . 22 Impact . | . . . Slashing . | . . . Piercing . | . . . Highest Corruption . | . . . Average Corruption . | . . . Corruption Purged . | . . . Overload Shots . | . . . Overflow Damage 11 | . . 11 Projectiles . | . . . Explosions 11 | . . 11 Melee . | . . . Knockbacks . | . . . Impact . | . . . Kinetic . | . . . Secondary . | . . . Self-Inflicted Damage 146 | . . 146 Shots 5 | . . 5 Rammed . | . . . Targets Rammed . | . . . Kicked . | . . . Crushed . | . . . Highest Temperature 252 | . 188 252 Average Temperature 71 | . 67 74 Received Heat Transfer 210 | . 135 75 Siege Activations . | . . . Robots Corrupted . | . . . Combat Hostiles . | . . . Parts Fried . | . . . Impact Corruptions . | . . . Robots Melted . | . . . Combat Hostiles . | . . . Parts Melted 3 | . 3 . Heat Transferred 1789 | . 1073 716 Parts Sabotaged . | . . . Parts Stolen . | . . . Parts Stripped . | . . . Power Chain Reactions . | . . . Missiles Intercepted . | . . . Alert | -11 -10 -9 ------- Run | Scr Mat Mat Peak Influence 483 | . 280 483 Average Influence 203 | . 145 266 Maximum Alert Level 2 | . 1 2 Low Security (%) 52 | 100 76 29 Level 1 39 | . 23 54 Level 2 8 | . . 15 Level 3 . | . . . Level 4 . | . . . Level 5 . | . . . High Security . | . . . Max Security . | . . . Squads Dispatched 6 | . 3 3 Investigation 1 | . . 1 Extermination . | . . . Reinforcement 5 | . 3 2 Assault . | . . . Garrison . | . . . Intercept . | . . . Construction Impeded . | . . . Haulers Reinforced . | . . . Stealth | -11 -10 -9 --------- Run | Scr Mat Mat Distress Signals 3 | . 1 2 Communications Jammed . | . . . Distress Signals . | . . . Times Spotted 44 | . 14 30 Peak Tracking Total 8 | . 3 8 Tactical Retreats 3 | . . 3 Traps | -11 -10 -9 ------- Run | Scr Mat Mat Traps Triggered 2 | . 1 1 Indirectly . | . . . Trap Hack Attempts . | . . . Triggered . | . . . Disarmed . | . . . Reprogrammed . | . . . Reused . | . . . Traps Extracted . | . . . Installed . | . . . Triggered . | . . . Machines | -11 -10 -9 ---------- Run | Scr Mat Mat Machines Disabled 3 | . 1 2 Max in Single Turn 2 | . 1 2 Machines Sabotaged . | . . . Garrisons Compromised . | . . . Overloaded Fab Kills . | . . . Fab Network Shutdowns . | . . . Hacking | -11 -10 -9 --------- Run | Scr Mat Mat Machines Accessed 1 | . 1 . Terminals 1 | . 1 . Fabricators . | . . . Repair Stations . | . . . Recycling Units . | . . . Scanalyzers . | . . . Garrison Access . | . . . Total Hacks 1 | . 1 . Successful 1 | . 1 . Failed . | . . . Catastrophic . | . . . Database Lockouts . | . . . Manual . | . . . Terminals 1 | . 1 . Fabricators . | . . . Repair Stations . | . . . Recycling Units . | . . . Scanalyzers . | . . . Garrison Access . | . . . Terminal Hacks 1 | . 1 . Record 1 | . 1 . Fabricator Hacks . | . . . Repair Station Hacks . | . . . Recycling Unit Hacks . | . . . Scanalyzer . | . . . Garrison Access Hacks . | . . . Unauthorized Hacks . | . . . Terminals . | . . . Fabricators . | . . . Repair Stations . | . . . Recycling Units . | . . . Scanalyzers . | . . . Garrison Access . | . . . Data Cores Recovered . | . . . Used . | . . . Hacking Detections 1 | . 1 . Full Trace Events . | . . . Feedback Events . | . . . Feedback Blocked . | . . . Robot Schematics Acquired . | . . . Robots Built . | . . . Matter . | . . . Time . | . . . Total Robot Build Rating . | . . . Part Schematics Acquired . | . . . Parts Built . | . . . Matter . | . . . Time . | . . . Total Part Build Rating . | . . . Parts Repaired . | . . . Time . | . . . Parts Recycled . | . . . Recycled Matter . | . . . Retrieved Matter . | . . . Retrieved Components . | . . . Parts Scanalyzed . | . . . Part Schematics Acquired . | . . . Parts Damaged . | . . . Bothacking | -11 -10 -9 ------------ Run | Scr Mat Mat Used RIF Installer . | . . . Robots Hacked . | . . . Non-combat . | . . . Combat . | . . . Robot Hacks Applied . | . . . Relay Couplers Released . | . . . Robots Rewired . | . . . Allies Hacked . | . . . Hacks Repelled . | . . . Allies | -11 -10 -9 -------- Run | Scr Mat Mat Total Allies . | . . . Largest Group . | . . . Highest-Rated Group . | . . . Highest-Rated Ally . | . . . Total Orders . | . . . Ally Attacks . | . . . Total Damage . | . . . Kills . | . . . Allies Corrupted . | . . . Allies Melted . | . . . Intel | -11 -10 -9 ------- Run | Scr Mat Mat Robot Analysis Total . | . . . Derelict Logs Recovered . | . . . Drone Launches . | . . . Drone Recoveries . | . . . Exploration | -11 -10 -9 ------------- Run | Scr Mat Mat Turns Passed 926 | 56 361 509 Spaces Moved 585 | 43 210 332 Core 7 | 7 . . Treads . | . . . Legs 578 | 36 210 332 Wheels . | . . . Hover . | . . . Flight . | . . . Fastest Speed 50 | 50 120 120 Average Speed 119 | 112 120 120 Slowest Speed 120 | 120 120 120 Overloaded Moves . | . . . Propulsion Burnouts . | . . . Robots Hopped . | . . . Cave-ins Triggered . | . . . Exploration Rate (%) 25 | 4 40 32 Regions Visited 2 Branch Regions . Pre-discovered Areas . | . . . Known Exits Taken . | . . . Unknown Exits Taken 2 | 1 1 . Scrap Searched . | . . . Spaces Dug . | . . . Terrain Destroyed 65 | . 15 50 Melee . | . . . Projectile . | . . . AOE 65 | . 15 50 Actions | -11 -10 -9 --------- Run | Scr Mat Mat Total 727 | 48 280 399 Wait 28 | . 17 11 Move 583 | 42 209 332 Hop . | . . . Pick Up 6 | 1 3 2 Fast Attach 7 | 5 1 1 Attach 1 | . . 1 Detach . | . . . Swap 5 | . 1 4 Drop 7 | . 3 4 Fire 83 | . 39 44 Melee . | . . . Ram . | . . . Kick . | . . . Crush . | . . . Escape Stasis . | . . . Rewire . | . . . Trap . | . . . Miscellaneous 7 | . 7 . Route ------- -11/Scrapyard -10/Materials (discovered 2 exits: *Mat / [*Min]) -9/Materials (discovered 1 exit: [*Min]) History --------- Turn | Location | Event 3 | -11/Scrapyard | Upgraded with Propulsion slot (x1) 3 | -11/Scrapyard | Upgraded with Utility slot (x1) 3 | -11/Scrapyard | Upgraded with Weapon slot (x1) 6 | -11/Scrapyard | Discovered new exit (range 16) 57 | -11/Scrapyard | Entered Materials 155 | -10/Materials | Discovered new exit (range 16) 307 | -10/Materials | Build established: Mutant 402 | -10/Materials | Discovered new exit (range 8) 418 | -10/Materials | Entered another Materials area 420 | -9/Materials | Reached level 2 607 | -9/Materials | Reached level 3 632 | -9/Materials | Core integrity fell below 50% 740 | -9/Materials | Core integrity fell below 20% 905 | -9/Materials | Discovered new exit (range 9) 927 | -9/Materials | Destroyed by S-10 Pest with Light Assault Rifle Last Messages --------------- 00792_ Acquired 15 matter. 00794_ Acquired 12 matter. 00804_ U-05 Engineer lays Concrete. 00805_ T-07 Excavator is excavating. 00805_ U-05 Engineer lays Concrete. 00807_ Acquired Sml. Laser. 00807_ U-05 Engineer lays Concrete. 00809_ U-05 Engineer builds a Wall. 00811_ G-34 Mercenary destroyed. 00827_ Dropped Aluminum Leg. 00828_ Acquired 10 matter. 00831_ Dropped Aluminum Leg. 00837_ Acquired 10 matter. 00905_ EXIT=FOUND 00907_ W-16 Scout sends out distress signal. 00912_ Triggered Alarm Trap. 00912_ An alarm sounds. 00912_ ALERT: Alarm triggered, dispatching investigation squad. 00927_ C-30 ARC bursts open, deploying its payload. 00927_ S-10 Pest unfolds itself. Map ----- +----------------------------------------------------+ | | | | | | | | | | | | | | | | | | | | | ????????????????????????????????????????????????? | | ????????????????????????????????????????????????? | | ????????????????????????????????????????????????? | | ????????????????????????????????????????????????? | | ????????????????????????????????????????????????? | | ????????????????????##??????????????????????????? | | ???????????????????? #??????????????????????????? | | ???????????????????? #??????????????????????????? | | ????????#####??????? #??????????????????????????? | | ???????##"""##?# ??? #??????????????????????????? | | ??????##"|||"### """ #??????????????????????????? | | ??????#"" ""## """ #??????????????????????????? | | ??????# ## ###+###+###########????????? | | ??????# < ## """ # g g ??????? | | ??????# ## """ # ssk g ??????? | | ??????# ?# """ # @ ss ??????? | | ???????# ??# # #######??????????????? | | ######### #????= # #????????????????????? | | # # #######+## #????????????????????? | | # + w #????????????????????? | | # # +????????????????????? | | # """ + #????????????????????? | | # """ ##+###+##### #????????????????????? | | # """ # ???# ##????????????????????? | | # # ???# #?????????????????????? | | # """ # ??# #?????????????????????? | | # """ # + #?????????????????????? | | # """ # # #?????????????????????? | | # # # #?????????????????????? | | ####+#### + #?????????????????????? | | ???# #??# # +?????????????????????? | | ???# #??#####+##### #?????????????????????? | | ???# #?[= +?? #?????????????????????? | | ???# # =! #??######+##?????????????????????? | | ???# ##=! #????????????????????????????????? | | ???# ## #????????????????????????????????? | | ???# ## #????????????????????????????????? | | ???# ## """"" "#????????????????????????????????? | | ???# ## """"" T#????????????????????????????????? | | ???# #? """"" "#????????????????????????????????? | +----------------------------------------------------+ Best States ------------- Heat Dissipation 25 Energy Generation 19 Energy Capacity 160 Matter Stores 300 Matter Capacity 300 Sight Range 18 Terrain Scan Density 10 Evasion (%) 40 Item Schematics ----------------- None Robot Schematics ------------------ None Fabricated ------------ Nothing Alien Tech Used ----------------- None Achievements -------------- None Challenges ------------ None RPGLIKE | -11 -10 -9 --------- Run | Scr Mat Mat Levels Raised 2 | . . 2 XP Earned 7184 | 3000 1025 3159 XP Spent 2975 | 2975 . . Upgrades 9 | 9 . . Propulsion Slot 1 | 1 . . Utility Slot 1 | 1 . . Weapon Slot 1 | 1 . . Core Integrity 1 | 1 . . Energy Generation 1 | 1 . . Inventory Capacity 2 | 2 . . Sight Range 2 | 2 . . Protomatter Created 83 | . 66 17 Integrity Restored 139 | . 139 . Core 139 | . 139 . Protomatter Decayed 50 | . 19 31 Game ------ Seed MetafieldWeaponAirjet Manual? 0 Play Time 00:13:21 Cumulative 58.7 hours Start 2019.12.29 @ 13:48:54 End 2019.12.29 @ 14:01:55 Sessions 1 Manual Loads 0 Difficulty Rogue Special Mode Winter2019/RPGLIKE Game No. 68 Rogue 68 Adventurer 0 Explorer 0 Win Type - Total 0 Types 0/0/0/0/0/0/0 Lore% 11 Gallery% 29 Achievement% 19 Wizard Run 0 Options --------- ASCII 0 Keyboard 0 Movement Mouse Keybinds 0 Fullscreen 1 Font 18/SmallcapsGlow Map View 76x50 Tactical HUD 1 Map Filters NONE Filters NONE Steam 1 RUN: df32021b-d646-4b40-8777-8fed2e0e7ca2